bitfinex/quotes_ETHUSD_20250505
["timestamp","ask_amount","ask_price","bid_price","bid_amount"]
[1746411548598,0.9741442,1804.7,1804.6,11.21613913]
[1746411549529,0.1812442,1804.2,1804.1,6.03313913]
[1746411549847,0.1812442,1804.2,1804.1,11.21613913]
[1746411551437,0.7929,1804.3,1804.0,18.349]
[1746411551438,0.1812442,1804.1,1804.0,18.349]
[1746411551639,1.0108442,1804.1,1804.0,18.349]
[1746411551809,1.0108442,1804.0,1803.9,5.183]
[1746411552143,1.0108442,1804.0,1803.9,2.14628]
[1746411553246,0.1812442,1804.0,1803.9,2.20171062]
[1746411553450,0.1812442,1804.0,1803.9,2.14628]
[1746411555237,0.1812442,1804.0,1803.8,3.73732017]
[1746411555439,0.9314442,1803.9,1803.8,5.184]
[1746411556568,0.1812442,1803.9,1803.8,5.184]
[1746411556865,0.1812442,1803.9,1803.8,5.7024]
[1746411557368,0.1812442,1803.9,1803.8,5.184]
[1746411557939,0.9886442,1803.9,1803.8,5.184]
[1746411558951,0.9886442,1803.9,1803.5,6.03313913]
[1746411558952,0.1812442,1803.6,1803.5,6.03313913]
[1746411559148,0.1812442,1803.6,1803.5,11.21713913]
[1746411559342,0.9999442,1803.6,1803.5,11.21713913]
[1746411560150,0.9999442,1803.6,1803.5,5.184]
[1746411561069,0.1812442,1803.4,1803.3,22.08732017]
[1746411561418,0.9763442,1803.4,1803.3,27.27132017]
[1746411562179,0.9763442,1803.4,1803.3,23.534]
[1746411562876,0.9763442,1803.1,1803.0,3.73732017]
[1746411563075,0.9763442,1803.1,1803.0,8.92132017]
[1746411564064,0.1812442,1803.1,1803.0,15.84659132]
[1746411564373,0.1812442,1803.3,1803.1,0.8061]
[1746411564572,0.1812442,1803.3,1803.2,6.03313913]
[1746411566088,0.9763442,1803.3,1803.2,11.21813913]
[1746411566879,7.05461341,1803.3,1803.2,5.185]
[1746411567182,7.76007475,1803.3,1803.2,5.185]
[1746411567385,1.68180554,1803.3,1803.2,5.185]
[1746411567692,4.05461341,1803.3,1803.2,5.185]
[1746411568380,0.9763442,1803.3,1803.2,5.185]
[1746411573109,3.25951341,1803.3,1803.2,5.185]
[1746411573309,4.08061341,1803.3,1803.2,5.185]
[1746411577551,1.0023442,1803.3,1803.2,5.185]
[1746411577721,0.7655,1803.6,1803.2,11.73663913]
[1746411578046,3.7655,1804.0,1803.3,0.8185]
[1746411578252,3.07826921,1803.9,1803.3,0.8185]
[1746411578424,0.7841,1803.8,1803.2,11.73663913]
[1746411578629,3.07826921,1803.7,1803.2,11.73663913]
[1746411578833,0.7841,1803.6,1803.2,11.73663913]
[1746411579949,3.07826921,1803.5,1803.3,5.179]
[1746411581548,0.7841,1803.4,1803.3,5.179]
[1746411583612,0.29081016,1803.4,1803.3,5.179]
[1746411591072,0.29081016,1803.4,1803.3,6.04414134]
[1746411591376,0.29081016,1803.4,1803.3,5.9887]
[1746411591532,0.29081016,1803.4,1803.3,7.24632332]
[1746411591729,0.29081016,1803.4,1803.3,7.19088391]
[1746411593132,0.29081016,1803.4,1803.3,6.38118391]
[1746411593434,0.29081016,1803.4,1803.3,5.179]
[1746411593929,0.29081016,1803.4,1803.3,5.23444983]
[1746411595464,0.29081016,1803.4,1803.3,5.179]
[1746411596775,1.04471016,1803.4,1803.3,5.178]
[1746411597761,1.04471016,1803.4,1803.2,5.178]
[1746411598237,1.04471016,1803.4,1803.2,5.6958]
[1746411598870,1.04471016,1803.4,1803.2,5.178]
[1746411601277,0.29081016,1803.4,1803.2,5.178]
[1746411602069,3.8228,1803.6,1803.2,5.178]
[1746411603379,3.8228,1803.6,1803.2,5.23345072]
[1746411603582,0.8228,1803.6,1803.2,5.178]
[1746411604577,0.8228,1803.6,1803.2,5.77184]
[1746411604781,3.8228,1803.6,1802.9,6.79353913]
[1746411604938,3.8228,1803.6,1803.0,5.17]
[1746411605144,3.89056921,1803.5,1803.0,5.17]
[1746411605344,4.27962613,1803.5,1803.0,5.17]
[1746411610483,0.29082485,1803.4,1803.0,5.17]
[1746411611709,0.29082485,1803.4,1803.1,0.88526015]
[1746411612008,0.7576,1803.9,1803.2,0.8298]
[1746411612160,0.29077601,1803.7,1803.2,0.8298]
[1746411614291,0.8096,1803.6,1803.2,0.8298]
[1746411614497,3.8096,1803.6,1803.3,5.17]
[1746411614700,0.38096,1803.5,1803.3,5.17]
[1746411615593,0.8303,1803.4,1803.2,3.73732017]
[1746411615778,0.8303,1803.4,1803.3,5.17]
[1746411617098,0.7951,1803.3,1803.2,3.73732017]
[1746411617685,1.10719737,1803.3,1803.2,3.73732017]
[1746411617985,1.56807557,1803.3,1803.2,3.73732017]
[1746411618359,1.10719737,1803.3,1803.2,3.73732017]
[1746411618777,0.7951,1803.3,1803.2,3.73732017]
[1746411618978,0.7951,1803.3,1802.9,5.17]
[1746411620370,0.7951,1803.3,1803.0,0.05545972]
[1746411620576,0.7579,1803.5,1803.0,1.38710569]
[1746411621568,0.7579,1803.5,1803.0,7.42024482]
[1746411621801,1.04867601,1803.7,1803.0,7.3647851]
[1746411623196,0.29077601,1803.7,1803.1,0.82414799]
[1746411623588,0.29077601,1803.7,1803.2,0.7687]
[1746411623905,0.29077601,1803.7,1803.3,5.171]
[1746411624062,0.29077601,1803.7,1803.4,0.5171]
[1746411624677,0.29077601,1803.7,1803.5,0.7562]
[1746411625623,3.36904522,1803.7,1803.3,5.171]
[1746411625803,0.8282,1803.6,1803.3,5.171]
[1746411626524,3.07826921,1803.5,1803.3,5.17]
[1746411626817,3.46891613,1803.5,1803.3,5.17]
[1746411627322,3.8282,1803.4,1803.3,5.17]
[1746411627525,0.8282,1803.4,1803.3,5.17]
[1746411627680,0.68146231,1803.5,1803.3,5.17]
[1746411627880,0.29081539,1803.5,1803.3,5.17]
[1746411628985,0.29081539,1803.5,1803.3,5.22545249]
[1746411629187,0.29081539,1803.5,1803.4,0.7562]
[1746411631728,0.29081539,1803.5,1803.4,0.88089015]
[1746411631913,0.29081539,1803.5,1803.4,0.7562]
[1746411632618,0.29081539,1803.5,1803.4,1.34882]
[1746411632816,0.7691,1804.2,1803.4,7.38195913]
[1746411633326,3.7691,1804.2,1803.4,7.38195913]
[1746411633496,0.7691,1804.2,1803.4,7.38195913]
[1746411633694,0.7691,1804.2,1803.6,0.8251]
[1746411633897,0.7691,1804.2,1803.7,5.16]
[1746411635735,3.84736921,1804.2,1803.7,5.16]
[1746411638341,0.7607,1803.9,1803.8,5.159]
[1746411640232,0.55,1804.4,1803.8,5.159]
[1746411640233,0.8097,1804.4,1803.8,5.159]
[1746411640537,1.19067,1804.4,1803.8,5.9706]
[1746411640735,0.8097,1804.4,1803.8,5.9706]
[1746411642029,0.8097,1804.4,1803.9,0.05542729]
[1746411642731,0.8097,1804.4,1803.9,0.05542728]
[1746411643534,3.7639,1804.6,1803.9,0.05542728]
[1746411643845,0.7639,1804.6,1804.0,0.7982]
[1746411644335,0.29071064,1804.9,1804.2,0.7982]
[1746411644524,0.29071064,1804.9,1804.4,0.7982]
[1746411644720,4.43715479,1805.2,1804.4,1.31460106]
[1746411644923,3.67325479,1805.2,1804.5,0.85360291]
[1746411645110,3.67325479,1805.2,1804.6,0.7982]
[1746411645310,3.67325479,1805.2,1804.7,11.19213913]
[1746411645504,3.67325479,1805.2,1804.8,1.11921391]
[1746411646135,3.67325479,1805.2,1804.7,11.19213913]
[1746411646301,3.67325479,1805.2,1804.8,5.159]
[1746411646704,3.67325479,1805.2,1804.9,0.7982]
[1746411648651,0.29054599,1805.3,1804.9,0.7982]
[1746411650948,3.3688152,1805.3,1805.0,5.157]
[1746411651149,0.33688152,1805.2,1805.0,5.157]
[1746411651350,4.16778152,1805.2,1804.7,0.767]
[1746411651666,3.07826921,1805.1,1804.7,5.157]
[1746411652450,0.8309,1805.0,1804.7,5.157]
[1746411653669,3.0,1804.9,1804.3,6.03313913]
[1746411653817,3.69091692,1804.9,1804.4,5.157]
[1746411654516,3.90916921,1805.0,1804.4,5.157]
[1746411654721,3.0,1804.9,1804.4,5.157]
[1746411657156,3.8309,1805.0,1804.4,5.157]
[1746411657855,3.8309,1805.0,1804.5,0.7642]
[1746411658019,0.8309,1805.0,1804.5,0.7642]
[1746411658220,0.8309,1805.0,1804.5,0.81961226]
[1746411658745,0.8309,1805.0,1804.5,0.7642]
[1746411659142,1.04344599,1805.3,1804.5,0.81960978]
[1746411659364,0.29054599,1805.3,1804.6,6.03313913]
[1746411659560,0.29054599,1805.3,1804.7,0.60331391]
[1746411659723,0.29054599,1805.3,1804.8,5.157]
[1746411660124,3.29054599,1805.3,1804.8,5.157]
[1746411661062,3.7529,1805.1,1804.9,5.157]
[1746411661626,4.04346998,1805.1,1804.5,0.7642]
[1746411661968,0.29056998,1805.1,1804.7,0.7969]
[1746411662123,0.29056998,1805.1,1804.8,0.05539576]
[1746411662324,0.29056998,1805.1,1804.7,0.7969]
[1746411665537,3.0,1805.4,1804.9,0.7609]
[1746411665737,3.7654,1805.7,1805.0,5.145]
[1746411665940,0.29052301,1805.4,1805.0,5.145]
[1746411666149,3.7654,1805.7,1805.0,5.145]
[1746411666433,0.29051867,1805.4,1805.0,5.145]
[1746411666643,3.7654,1805.7,1805.0,5.145]
[1746411666858,0.29051824,1805.4,1805.0,5.145]
[1746411667067,0.29051824,1805.4,1805.1,0.5145]
[1746411667270,0.7654,1805.7,1805.1,0.5145]
[1746411667479,0.2905179,1805.4,1805.1,0.5145]
[1746411667859,0.7654,1805.7,1805.1,0.5145]
[1746411668061,0.29051731,1805.4,1805.1,0.5145]
[1746411668367,0.7654,1805.7,1805.1,0.5145]
[1746411668669,0.29051807,1805.4,1805.1,0.5145]
[1746411668873,0.7654,1805.7,1805.1,0.5145]
[1746411669239,0.29051858,1805.4,1805.1,0.5145]
[1746411669574,0.7577,1805.4,1805.0,5.145]
[1746411669735,1.0482219,1805.4,1805.0,5.145]
[1746411671237,0.2905219,1805.4,1805.0,5.145]
[1746411672972,0.2905219,1805.4,1805.0,5.20039533]
[1746411673276,0.2905219,1805.4,1805.1,0.7819]
[1746411674878,0.2905219,1805.4,1805.1,1.97790391]
[1746411677971,0.2905219,1805.4,1805.1,0.7819]
[1746411678273,3.36879111,1805.4,1805.0,11.17813913]
[1746411678644,3.78011894,1805.4,1805.1,5.144]
[1746411679177,0.2905219,1805.4,1805.1,5.144]
[1746411681180,0.2905219,1805.4,1805.2,0.7964]
[1746411681380,0.2905219,1805.4,1805.2,1.39044]
[1746411682382,4.12019111,1805.4,1805.1,5.144]
[1746411682682,4.12019111,1805.4,1805.2,5.144]
[1746411683554,4.12019111,1805.4,1804.8,18.347]
[1746411683892,0.7799,1805.1,1804.9,5.144]
[1746411684088,1.0704219,1805.4,1804.9,5.144]
[1746411684246,3.07826921,1805.1,1804.9,5.144]
[1746411684445,3.84906921,1805.1,1804.9,5.144]
[1746411684889,0.7708,1805.1,1804.9,5.144]
[1746411685059,1.06136386,1805.1,1804.9,5.144]
[1746411685655,3.36883307,1805.1,1804.8,18.347]
[1746411685951,0.7708,1804.9,1804.8,23.491]
[1746411686170,0.7708,1804.9,1804.8,5.144]
[1746411687658,6.84906921,1804.9,1804.8,5.144]
[1746411688357,7.16080927,1804.9,1804.8,5.144]
[1746411689710,6.84906921,1804.9,1804.8,5.144]
[1746411689996,7.56766446,1804.9,1804.8,5.144]
[1746411690161,7.56766446,1804.9,1804.6,5.145]
[1746411691284,7.99151674,1804.9,1804.6,5.145]
[1746411694105,1.09576386,1805.1,1804.7,0.7563]
[1746411694404,0.29056386,1805.1,1804.7,0.81171698]
[1746411694603,0.29056386,1805.1,1804.7,1.32810211]
[1746411694792,0.29056386,1805.1,1804.7,1.27270106]
[1746411694968,7.19984972,1805.7,1804.8,0.7563]
[1746411695172,0.29051455,1805.4,1804.9,0.7692]
[1746411695372,0.29051455,1805.4,1805.0,5.132]
[1746411695687,3.0,1805.6,1805.0,5.132]
[1746411695869,0.29050927,1805.4,1805.0,5.132]
[1746411696069,0.29050927,1805.4,1805.1,0.5132]
[1746411696290,0.29050927,1805.4,1805.2,0.7692]
[1746411699100,0.8052,1805.7,1805.2,0.7692]
[1746411699306,0.29048512,1805.6,1805.2,0.7692]
[1746411701678,0.71714618,1805.6,1805.2,0.7692]
[1746411701879,0.29048512,1805.6,1805.2,0.7692]
[1746411704012,3.78875866,1805.6,1805.3,5.131]
[1746411704228,0.37887587,1805.5,1805.3,5.131]
[1746411704513,3.37887587,1805.5,1805.3,5.131]
[1746411704723,3.0,1805.5,1805.3,5.131]
[1746411705223,3.89926921,1805.4,1805.2,5.131]
[1746411705523,3.07826921,1805.3,1805.2,5.131]
[1746411705884,3.89926921,1805.3,1805.2,5.131]
[1746411706119,4.28919613,1805.3,1805.2,5.131]
[1746411706825,5.01876368,1805.3,1805.2,5.131]
[1746411707298,4.19776368,1805.3,1804.9,3.73732017]
[1746411707493,3.07826921,1805.1,1804.9,8.86932017]
[1746411707699,3.46819613,1805.1,1804.9,8.86932017]
[1746411708226,3.46819613,1805.1,1804.9,5.132]
[1746411708725,9.33119613,1805.1,1804.9,5.132]
[1746411708893,3.46819613,1805.1,1804.9,5.132]
[1746411709094,0.38992692,1805.1,1804.9,5.132]
[1746411709294,3.0,1805.1,1804.9,5.132]
[1746411710528,0.7576,1805.0,1804.9,5.132]
[1746411710728,0.7576,1804.8,1804.5,5.132]
[1746411711034,3.07826921,1804.7,1804.5,5.132]
[1746411711910,3.83586921,1804.8,1804.4,5.132]
[1746411712110,3.83586921,1804.8,1804.4,6.01893202]
[1746411713110,3.83586921,1804.8,1804.4,0.88693202]
[1746411713309,3.83586921,1804.8,1804.4,5.132]
[1746411714632,0.29063769,1804.7,1804.4,5.132]
[1746411717445,3.0,1804.9,1804.8,3.54437984]
[1746411720458,3.7697,1804.9,1804.8,3.54437984]
[1746411722558,4.45449692,1804.9,1804.8,3.54437984]
[1746411722848,4.86732334,1804.9,1804.8,3.54437984]
[1746411724244,4.89722334,1804.9,1804.8,3.54437984]
[1746411724943,5.20783448,1804.9,1804.8,3.54437984]
[1746411726716,0.72343756,1804.9,1804.8,3.54437984]
[1746411727141,3.72343756,1804.9,1804.8,3.54437984]
[1746411727342,3.41282642,1804.9,1804.8,3.54437984]
[1746411727859,2.94671579,1805.0,1804.4,5.9062]
[1746411729055,3.36054857,1805.0,1804.4,5.9062]
[1746411729258,3.36054857,1805.0,1804.5,0.59062]
[1746411729955,3.0,1804.9,1804.5,0.59062]
[1746411732164,3.86256921,1804.8,1804.4,5.119]
[1746411732328,3.07826921,1804.8,1804.4,5.119]
[1746411732520,3.07826921,1804.8,1804.5,0.7748]
[1746411732723,3.0,1804.9,1804.5,0.7748]
[1746411732921,0.70443527,1805.0,1804.5,0.7748]
[1746411733173,0.70443527,1805.0,1804.6,0.05540741]
[1746411733330,0.29060249,1805.0,1804.7,0.7748]
[1746411733648,0.29060249,1805.0,1804.8,5.119]
[1746411734458,6.87366921,1804.9,1804.8,5.119]
[1746411735348,7.18558179,1804.9,1804.8,5.119]
[1746411735751,0.7917,1804.7,1804.2,0.7966]
[1746411735935,3.07826921,1804.6,1804.2,5.9156]
[1746411737839,0.7917,1804.7,1804.2,5.9156]
[1746411739885,3.0,1804.5,1804.2,5.119]
[1746411740107,0.8295,1804.4,1804.2,5.119]
[1746411740240,1.14167476,1804.4,1804.2,5.119]
[1746411740444,0.31217476,1804.4,1804.2,5.119]
[1746411741162,3.0,1804.5,1804.2,5.119]
[1746411741686,3.90776921,1804.6,1804.2,5.119]
[1746411741687,0.8295,1804.6,1804.2,5.119]
[1746411741887,3.90776921,1804.6,1804.2,5.119]
[1746411742175,0.31215328,1804.5,1804.2,5.119]
[1746411743670,5.0063788,1804.6,1804.2,5.119]
[1746411744083,3.0,1804.4,1804.2,5.119]
[1746411744990,1.92810959,1804.6,1804.2,5.119]
[1746411745169,5.0063788,1804.6,1804.2,5.119]
[1746411745805,0.31200433,1804.5,1804.2,5.119]
[1746411746011,0.31200433,1804.5,1804.3,0.8095]
[1746411746492,0.40783267,1804.6,1804.3,0.86491718]
[1746411746694,3.50159493,1804.8,1804.3,0.86491718]
[1746411746695,2.72139493,1804.8,1804.3,0.86491718]
[1746411746894,2.72139493,1804.8,1804.3,0.8095]
[1746411747196,2.72139493,1804.8,1804.3,1.40235]
[1746411748297,0.29063675,1804.8,1804.4,0.86231581]
[1746411748603,0.29063675,1804.8,1804.4,0.8069]
[1746411750773,1.04213675,1804.8,1804.4,0.8069]
[1746411751087,1.04213675,1804.8,1804.2,5.8907]
[1746411751088,3.07826921,1804.7,1804.2,5.8907]
[1746411751283,3.07826921,1804.7,1804.2,6.47977]
[1746411751488,0.31195051,1804.6,1804.2,6.47977]
[1746411752207,3.07826921,1804.7,1804.3,5.12]
[1746411752909,3.07826921,1804.5,1804.3,5.12]
[1746411753205,3.0,1804.4,1804.3,5.12]
[1746411755314,0.41112976,1804.5,1804.3,5.12]
[1746411755604,3.0,1804.6,1804.4,0.512]
[1746411755774,3.0,1804.6,1804.3,5.9432]
[1746411756482,3.42310516,1804.6,1804.3,5.12]
[1746411757506,0.31192999,1804.5,1804.3,5.12]
[1746411758372,3.15877428,1804.6,1804.3,5.12]
[1746411759906,3.98787428,1804.6,1804.3,5.12]
[1746411760106,4.61157863,1804.6,1804.3,5.12]
[1746411760497,0.31195738,1804.5,1804.3,5.12]
[1746411761421,4.61157863,1804.6,1804.3,5.12]
[1746411762791,3.0,1804.4,1804.3,5.12]
[1746411763088,3.60782692,1804.4,1804.3,5.12]
[1746411763585,4.43692692,1804.4,1804.3,5.12]
[1746411763919,3.4114301,1804.4,1804.3,5.12]
[1746411764123,5.80360318,1804.4,1804.3,5.12]
[1746411765388,6.35360318,1804.4,1804.3,5.12]
[1746411768413,12.21660318,1804.4,1804.3,5.12]
[1746411768792,12.21660318,1804.4,1803.9,3.73732017]
[1746411769105,12.21660318,1804.4,1803.8,5.106]
[1746411769106,3.7835,1803.9,1803.8,5.106]
[1746411769306,0.7835,1803.9,1803.8,5.106]
[1746411769710,1.09562522,1803.9,1803.8,5.106]
[1746411770235,6.30800318,1803.9,1803.8,5.106]
[1746411770435,4.64562522,1803.9,1803.8,5.106]
[1746411770929,14.10889811,1803.9,1803.6,3.73732017]
[1746411771129,1.66237796,1803.7,1803.6,3.73732017]
[1746411773438,2.21237796,1803.7,1803.6,3.73732017]
[1746411773601,2.81196576,1803.7,1803.6,3.73732017]
[1746411774003,2.81196576,1803.7,1803.5,5.107]
[1746411774234,2.26196576,1803.7,1803.5,5.107]
[1746411774425,1.66237796,1803.7,1803.5,5.107]
[1746411775227,2.07730584,1803.7,1803.5,5.107]
[1746411777944,5.863,1804.2,1803.5,5.9269]
[1746411777945,2.72139493,1804.1,1803.5,5.9269]
[1746411778151,2.72139493,1804.1,1803.6,0.87534031]
[1746411778440,2.72139493,1804.1,1803.6,1.33630106]
[1746411778816,2.72139493,1804.1,1803.6,0.8199]
[1746411779550,1.66237796,1804.0,1803.6,0.8199]
[1746411779749,2.72139493,1804.1,1803.6,0.8199]
[1746411780851,3.0,1804.0,1803.6,1.41259]
[1746411781049,3.41095089,1804.0,1803.6,1.41259]
[1746411781527,6.48956522,1804.0,1803.6,0.8199]
[1746411781731,0.41095089,1804.0,1803.6,0.87534251]
[1746411781930,3.0,1804.2,1803.6,0.8199]
[1746411782532,3.0,1804.0,1803.6,0.8199]
[1746411785052,3.42339752,1804.0,1803.6,0.8199]
[1746411785553,0.42339752,1804.0,1803.7,0.7844]
[1746411785751,0.2791668,1804.8,1803.7,0.7844]
[1746411785752,6.62690926,1804.6,1803.7,0.8398404]
[1746411785966,6.90607606,1804.8,1803.8,0.7844]
[1746411786121,7.31751687,1804.8,1804.0,0.7844]
[1746411786317,3.07861433,1804.6,1804.1,5.095]
[1746411786556,3.0,1804.5,1804.1,5.095]
[1746411786950,3.07861433,1804.4,1804.1,5.095]
[1746411788957,0.41004245,1804.4,1804.1,5.095]
[1746411789120,3.0,1804.5,1804.2,1.2828]
[1746411793129,3.07861433,1804.4,1804.2,0.7733]
[1746411793326,3.07861433,1804.4,1804.1,5.095]
[1746411793530,3.85521433,1804.4,1804.1,5.095]
[1746411793952,6.07861433,1804.2,1804.1,5.095]
[1746411794154,6.68647576,1804.2,1804.1,5.095]
[1746411794629,0.7766,1804.1,1803.8,5.094]
[1746411794827,3.07861433,1803.9,1803.8,5.094]
[1746411795670,3.49142161,1803.9,1803.8,5.094]
[1746411797936,0.41280728,1803.9,1803.8,5.094]
[1746411798270,3.0,1804.0,1803.8,5.094]
[1746411799668,3.41455671,1804.0,1803.8,5.094]
[1746411799866,4.14153381,1804.0,1803.8,5.094]
[1746411800367,3.07861433,1803.9,1803.8,5.094]
[1746411800572,6.07861433,1803.9,1803.8,5.094]
[1746411800872,0.7867,1803.8,1803.5,5.094]
[1746411801178,3.07861433,1803.7,1803.5,5.094]
[1746411801900,3.0,1803.6,1803.5,5.094]
[1746411804343,3.55,1803.6,1803.5,5.094]
[1746411804940,6.27139493,1803.6,1803.5,5.094]
[1746411805378,7.06159493,1803.6,1803.5,5.094]
[1746411805888,7.06159493,1803.6,1803.2,5.095]
[1746411806090,3.78477382,1803.5,1803.2,5.095]
[1746411806593,6.07861433,1803.3,1803.2,5.095]
[1746411806790,6.86881433,1803.3,1803.2,5.095]
[1746411807087,7.41881433,1803.3,1803.2,5.095]
[1746411808703,7.69236078,1803.3,1803.2,5.095]
[1746411809083,7.41881433,1803.3,1803.2,5.095]
[1746411809293,6.07861433,1803.3,1803.2,5.095]
[1746411809689,3.0,1803.3,1803.2,5.095]
[1746411810192,0.42381394,1803.3,1803.2,5.68084]
[1746411810349,5.99554871,1803.6,1803.2,5.68084]
[1746411810554,3.0,1803.6,1803.2,5.68084]
[1746411810791,2.72139493,1803.9,1803.3,0.81885294]
[1746411810946,3.54819493,1804.3,1803.3,0.81885294]
[1746411811288,3.14395659,1804.3,1803.5,0.7634]
[1746411811494,0.42256166,1804.3,1803.7,0.7634]
[1746411811648,3.67325479,1804.4,1803.9,0.7634]
[1746411811849,3.67325479,1804.4,1804.0,5.096]
[1746411812255,3.67325479,1804.4,1804.1,0.7634]
[1746411813695,3.0,1804.5,1804.1,0.7634]
[1746411814503,3.07861433,1804.4,1804.1,0.7634]
[1746411814996,3.0,1804.3,1804.1,0.7634]
[1746411815196,3.0,1804.3,1804.0,5.096]
[1746411818204,3.07861433,1804.2,1804.0,5.096]
[1746411819474,6.07861433,1804.4,1804.0,5.096]
[1746411822981,3.0,1804.5,1804.1,0.8235]
[1746411823505,3.07861433,1804.6,1804.1,0.8235]
[1746411823506,3.07861433,1804.4,1804.1,0.8235]
[1746411823706,6.38647576,1804.4,1804.0,5.096]
[1746411823907,7.17457576,1804.4,1804.0,5.096]
[1746411824109,3.07861433,1804.2,1804.0,5.096]
[1746411824797,3.48679944,1804.2,1804.0,5.096]
[1746411827527,0.40818511,1804.2,1804.0,5.096]
[1746411827686,6.86671433,1804.4,1804.1,0.7616]
[1746411827891,3.07861433,1804.2,1804.0,5.096]
[1746411828519,7.28781088,1804.4,1804.0,5.096]
[1746411830826,6.49971088,1804.4,1804.0,5.096]
[1746411831031,6.49971088,1804.4,1804.0,5.68176]
[1746411832322,0.42109655,1804.4,1804.1,0.7688]
[1746411832501,2.72139493,1804.7,1804.1,0.82422253]
[1746411832700,3.3484892,1804.8,1804.1,0.82422253]
[1746411832929,3.95547761,1804.8,1804.1,0.82422253]
[1746411833111,3.0,1804.7,1804.1,0.82422253]
[1746411833327,3.0,1804.7,1804.1,0.7688]
[1746411834837,3.41700742,1804.7,1804.1,0.7688]
[1746411835149,3.41700742,1804.7,1804.1,0.82422101]
[1746411835643,3.07861433,1804.6,1804.1,0.7688]
[1746411835865,3.07861433,1804.6,1804.1,1.413856]
[1746411837627,3.07861433,1804.4,1804.1,0.7688]
[1746411837854,3.07861433,1804.2,1804.0,5.096]
[1746411841060,3.50306863,1804.2,1804.0,5.096]
[1746411843824,3.0,1804.5,1804.0,5.9251]
[1746411844015,0.42453774,1804.7,1804.2,0.8291]
[1746411844217,5.80000926,1805.0,1804.3,0.88451583]
[1746411844520,0.31203339,1804.9,1804.4,0.8006]
[1746411844751,0.31203339,1804.9,1804.5,0.85600583]
[1746411845053,0.31203339,1804.9,1804.5,0.8006]
[1746411845254,0.31203339,1804.9,1804.7,0.8006]
[1746411845444,0.31203339,1804.9,1804.8,5.081]
[1746411845627,0.42033846,1805.2,1804.9,0.8006]
[1746411845814,3.07861433,1805.2,1804.9,0.8006]
[1746411851868,3.0,1805.3,1804.9,0.8006]
[1746411853672,3.07861433,1805.2,1804.9,0.8006]
[1746411854265,3.07861433,1805.0,1804.7,5.067]
[1746411854441,3.0,1804.9,1804.7,5.067]
[1746411855079,3.07861433,1804.8,1804.7,5.067]
[1746411855372,6.07861433,1804.8,1804.7,5.067]
[1746411856056,3.0,1804.8,1804.7,5.067]
[1746411856466,3.42552511,1804.8,1804.7,5.067]
[1746411857082,3.42552511,1804.8,1803.9,3.73732017]
[1746411857083,1.3136,1804.6,1803.4,8.79003821]
[1746411857279,0.7636,1803.4,1802.9,7.08781373]
[1746411857573,3.0,1803.1,1802.9,7.08781373]
[1746411857742,3.07861433,1803.0,1802.9,7.08781373]
[1746411858348,3.07861433,1803.0,1802.9,12.15481373]
[1746411861064,3.49402268,1803.0,1802.9,12.15481373]
[1746411861464,4.14342495,1803.0,1802.9,5.067]
[1746411862504,0.55,1803.3,1802.9,5.067]
[1746411862505,3.52559493,1803.7,1802.9,5.8278]
[1746411862802,3.07861433,1803.0,1802.9,5.8278]
[1746411863463,3.07861433,1803.0,1802.9,5.067]
[1746411864092,3.495858,1803.0,1802.9,5.067]
[1746411864302,0.41724367,1803.0,1802.9,5.5737]
[1746411864498,3.0,1803.1,1802.9,5.5737]
[1746411864703,3.07861433,1803.0,1802.9,5.067]
[1746411866004,3.07861433,1803.0,1802.5,6.03313913]
[1746411866005,3.49903654,1803.0,1802.5,6.03313913]
[1746411866214,3.42042221,1803.0,1802.9,5.071]
[1746411866498,3.42042221,1803.0,1802.4,0.8138]
[1746411866499,3.49903654,1803.0,1802.8,5.071]
[1746411872205,3.84894019,1803.0,1802.8,5.071]
[1746411874248,0.759,1802.9,1802.4,0.8138]
[1746411874534,3.48039493,1802.9,1802.5,5.072]
[1746411875592,6.07861433,1802.6,1802.5,5.072]
[1746411875996,6.68647576,1802.6,1802.5,5.072]
[1746411876301,6.68647576,1802.6,1802.4,5.072]
[1746411876507,3.07861433,1802.5,1802.4,5.072]
[1746411877030,3.0,1802.6,1802.4,5.072]
[1746411877252,3.07861433,1802.5,1802.4,5.072]
[1746411877450,3.68647576,1802.5,1802.4,5.072]
[1746411877960,3.8153,1802.4,1802.1,18.35]
[1746411878167,3.07861433,1802.2,1802.1,23.422]
[1746411878326,3.07861433,1802.4,1802.1,23.422]
[1746411878747,3.07861433,1802.4,1802.2,0.7912]
[1746411881364,3.38647576,1802.4,1802.2,0.7912]
[1746411882373,3.7977076,1802.4,1802.1,23.422]
[1746411886526,3.48984617,1802.4,1802.1,23.422]
[1746411887065,0.41123184,1802.4,1802.2,0.88258806]
[1746411887219,3.83631433,1802.8,1802.2,0.88258806]
[1746411887425,3.83631433,1802.8,1802.2,0.8271]
[1746411887627,3.31181265,1802.7,1802.2,0.8271]
[1746411887865,3.31181265,1802.7,1802.2,3.25201]
[1746411888459,0.31181265,1802.6,1802.2,3.25201]
[1746411888663,0.73920365,1802.6,1802.2,3.25201]
[1746411888959,0.427391,1802.6,1802.2,3.25201]
[1746411889165,3.0,1802.7,1802.2,3.25201]
[1746411889465,3.07861433,1802.6,1802.2,3.25201]
[1746411892231,3.07861433,1802.6,1802.2,0.8271]
[1746411893530,3.4944339,1802.6,1802.2,0.8271]
[1746411893965,0.3119335,1802.5,1802.2,0.8271]
[1746411894769,3.4944339,1802.6,1802.2,0.8271]
[1746411895735,0.41581957,1802.6,1802.3,0.87717566]
[1746411896046,3.89271433,1803.0,1802.3,0.87717566]
[1746411896247,3.31203962,1802.9,1802.3,0.87717566]
[1746411896446,3.31203962,1802.9,1802.3,0.8217]
[1746411896643,0.31203962,1802.9,1802.3,0.8217]
[1746411896843,0.31203962,1802.9,1802.5,0.8217]